bitfinex/quotes_BTCUSD_20241203
["timestamp","ask_amount","ask_price","bid_price","bid_amount"]
[1733232198860,0.211146,94721.0,94713.0,0.10658117]
[1733232199077,0.21115,94719.0,94713.0,0.10658117]
[1733232199285,0.15,94720.0,94713.0,0.10658117]
[1733232200197,0.15,94720.0,94713.0,0.10958117]
[1733232200844,0.21115,94719.0,94713.0,0.10958117]
[1733232201057,0.15,94720.0,94713.0,0.10958117]
[1733232201299,0.15,94720.0,94713.0,0.10658117]
[1733232201518,0.15,94720.0,94713.0,0.10758117]
[1733232201737,0.21115,94719.0,94713.0,0.11058117]
[1733232201946,0.15,94720.0,94713.0,0.11058117]
[1733232202152,0.15,94720.0,94713.0,0.11258117]
[1733232202357,0.15,94720.0,94713.0,0.10958117]
[1733232202608,0.15,94720.0,94713.0,0.10758117]
[1733232202810,0.15,94725.0,94713.0,0.10758117]
[1733232203018,0.15,94723.0,94713.0,0.11058117]
[1733232203431,0.2128498,94731.0,94713.0,0.11058117]
[1733232203432,0.0017248,94731.0,94716.0,0.10471259]
[1733232203643,0.0017248,94731.0,94718.0,0.0779]
[1733232203644,0.15,94729.0,94718.0,0.0779]
[1733232203868,0.15,94729.0,94719.0,0.10658098]
[1733232204305,0.0017248,94731.0,94720.0,0.0779]
[1733232204514,0.0017248,94731.0,94722.0,0.0823]
[1733232204717,0.0017248,94731.0,94725.0,0.1319]
[1733232204925,0.0017248,94731.0,94730.0,0.39813859]
[1733232205157,0.0017248,94731.0,94730.0,0.18401259]
[1733232205363,0.0017248,94731.0,94730.0,0.18588067]
[1733232207689,0.0017248,94731.0,94730.0,0.39388067]
[1733232207898,0.0017246,94735.0,94734.0,0.39324153]
[1733232208117,0.0017246,94735.0,94734.0,0.62635412]
[1733232209474,0.0027246,94735.0,94734.0,0.63535412]
[1733232210135,0.0027246,94735.0,94734.0,0.44211259]
[1733232210348,0.0027246,94735.0,94734.0,0.63535412]
[1733232210559,0.0027246,94735.0,94734.0,0.73818558]
[1733232210772,0.0027246,94735.0,94734.0,0.54494405]
[1733232210990,0.0027246,94735.0,94734.0,0.25111259]
[1733232211190,0.0027246,94735.0,94734.0,0.45111259]
[1733232212557,0.0027246,94735.0,94734.0,0.64435412]
[1733232214672,0.0027246,94735.0,94734.0,0.45111259]
[1733232214892,0.0027246,94735.0,94734.0,0.47479321]
[1733232215352,0.0027246,94735.0,94734.0,0.45111259]
[1733232215564,0.0027246,94735.0,94734.0,0.64435412]
[1733232216194,0.0027246,94735.0,94734.0,0.45111259]
[1733232216413,0.0027246,94735.0,94734.0,0.25111259]
[1733232217192,0.0017246,94735.0,94734.0,0.44211259]
[1733232217392,0.0017246,94735.0,94734.0,0.48632385]
[1733232217589,0.0027246,94735.0,94734.0,0.49532385]
[1733232218403,0.0027246,94735.0,94734.0,0.44211259]
[1733232219185,0.0027246,94735.0,94734.0,0.45111259]
[1733232220625,0.0027246,94735.0,94734.0,0.20261259]
[1733232220774,0.01081351,94735.0,94734.0,0.20261259]
[1733232222701,0.0027246,94735.0,94734.0,0.20261259]
[1733232223553,0.0027246,94735.0,94734.0,0.20448066]
[1733232224443,0.00041318,94738.0,94734.0,0.26604183]
[1733232224659,0.00041318,94738.0,94735.0,0.10471259]
[1733232224863,0.00041318,94738.0,94736.0,0.00186809]
[1733232225071,0.00041318,94738.0,94737.0,0.10471259]
[1733232225724,0.00141318,94738.0,94737.0,0.10658059]
[1733232225921,0.00141318,94738.0,94737.0,0.18923924]
[1733232226548,0.00041318,94738.0,94737.0,0.18923924]
[1733232227166,0.00041318,94738.0,94737.0,0.31703924]
[1733232227382,0.00041318,94738.0,94737.0,0.31517124]
[1733232227853,0.00041318,94738.0,94737.0,0.32317124]
[1733232228065,0.00141318,94738.0,94737.0,0.33217124]
[1733232228487,0.00141318,94738.0,94737.0,0.24951259]
[1733232230463,0.00141318,94738.0,94737.0,0.46062259]
[1733232230676,0.00141318,94738.0,94737.0,0.24951259]
[1733232232851,0.00949685,94738.0,94737.0,0.24951259]
[1733232233056,0.00141318,94738.0,94737.0,0.24951259]
[1733232233490,0.00141318,94738.0,94737.0,0.12171259]
[1733232233723,0.00949685,94738.0,94737.0,0.12171259]
[1733232233927,0.00141318,94738.0,94737.0,0.12171259]
[1733232234353,0.00949685,94738.0,94737.0,0.12171259]
[1733232236131,0.00949685,94738.0,94737.0,0.16200695]
[1733232236592,0.00949685,94738.0,94737.0,0.16387508]
[1733232236808,0.00949685,94738.0,94737.0,0.12171259]
[1733232238376,0.00949685,94738.0,94737.0,0.12358073]
[1733232238590,0.00949685,94738.0,94737.0,0.12171259]
[1733232241418,0.00949685,94738.0,94737.0,0.1235807]
[1733232242740,0.00949685,94738.0,94737.0,0.12171259]
[1733232246909,0.00949685,94738.0,94737.0,0.12358069]
[1733232248694,0.00949685,94738.0,94737.0,0.16396134]
[1733232248695,0.00141318,94738.0,94737.0,0.16396134]
[1733232248909,0.00141318,94738.0,94737.0,0.12358069]
[1733232250435,0.00141318,94738.0,94737.0,0.20118069]
[1733232250699,0.211077,94753.0,94738.0,0.211108]
[1733232250964,0.211077,94753.0,94741.0,0.10471259]
[1733232251196,0.00731572,94752.0,94749.0,0.211083]
[1733232251437,0.00731572,94752.0,94750.0,0.10658035]
[1733232251698,0.0017262,94756.0,94750.0,0.10658035]
[1733232251930,0.00181928,94756.0,94751.0,0.03176704]
[1733232252167,0.211072,94754.0,94752.0,0.10658042]
[1733232252399,0.211072,94754.0,94752.0,0.10471259]
[1733232252884,0.00730821,94753.0,94752.0,0.10471259]
[1733232253357,0.00730821,94753.0,94752.0,0.11538385]
[1733232253667,0.00181928,94756.0,94752.0,0.11838385]
[1733232253760,0.00730127,94753.0,94752.0,0.11838385]
[1733232254223,0.00728311,94753.0,94752.0,0.11838385]
[1733232254495,0.00181928,94756.0,94752.0,0.11838385]
[1733232254731,0.00181928,94756.0,94753.0,0.01213839]
[1733232254968,0.00729431,94755.0,94754.0,0.10471259]
[1733232255820,0.00729431,94755.0,94754.0,0.10658035]
[1733232256028,0.00181928,94756.0,94754.0,0.10658035]
[1733232256256,0.00731789,94755.0,94754.0,0.10958035]
[1733232256459,0.00731789,94755.0,94754.0,0.12978146]
[1733232257647,0.00731789,94755.0,94754.0,0.13078146]
[1733232258117,0.00731789,94755.0,94754.0,0.13278146]
[1733232258352,0.00181928,94756.0,94754.0,0.13278146]
[1733232258353,0.00181928,94756.0,94754.0,0.10871259]
[1733232258587,0.00735135,94755.0,94754.0,0.10871259]
[1733232258833,0.00735135,94755.0,94754.0,0.11171259]
[1733232260010,0.00735135,94755.0,94754.0,0.10871259]
[1733232260259,0.00735135,94755.0,94754.0,0.11171259]
[1733232260725,0.00735135,94755.0,94754.0,0.12007063]
[1733232261305,0.00735135,94755.0,94754.0,0.11171259]
[1733232263296,0.00907695,94755.0,94754.0,0.11171259]
[1733232269491,0.00907695,94755.0,94754.0,0.10871259]
[1733232269738,0.00907695,94755.0,94754.0,0.11371259]
[1733232270485,0.00907695,94755.0,94754.0,0.10871259]
[1733232270737,0.00907695,94755.0,94754.0,0.2170462]
[1733232270995,0.0017256,94755.0,94754.0,0.22017853]
[1733232271227,0.0017256,94755.0,94754.0,0.21517853]
[1733232271474,0.0017256,94755.0,94754.0,0.23204617]
[1733232271727,0.0017256,94755.0,94754.0,0.23017853]
[1733232272886,0.0017256,94755.0,94754.0,0.22417853]
[1733232273313,0.0017256,94755.0,94754.0,0.23117853]
[1733232277523,0.0017256,94755.0,94754.0,0.19901259]
[1733232277739,0.0017256,94755.0,94754.0,0.12171259]
[1733232278160,0.22042432,94755.0,94754.0,0.12171259]
[1733232278606,0.00935432,94755.0,94754.0,0.12171259]
[1733232280406,0.22042432,94755.0,94754.0,0.12171259]
[1733232281035,0.00935432,94755.0,94754.0,0.12171259]
[1733232281438,0.22042432,94755.0,94754.0,0.12171259]
[1733232283134,0.00935432,94755.0,94754.0,0.12171259]
[1733232283395,0.00935432,94755.0,94754.0,0.14201063]
[1733232284253,0.00935432,94755.0,94754.0,0.12171259]
[1733232284676,0.22042432,94755.0,94754.0,0.12171259]
[1733232285095,0.00935432,94755.0,94754.0,0.12171259]
[1733232291711,0.08995432,94755.0,94754.0,0.12171259]
[1733232292216,0.08995432,94755.0,94754.0,0.11471259]
[1733232292635,0.08995432,94755.0,94754.0,0.11771259]
[1733232293050,0.08995432,94755.0,94754.0,0.10571259]
[1733232293273,0.29311279,94755.0,94754.0,0.004]
[1733232293477,0.29311279,94755.0,94754.0,0.008]
[1733232293714,0.29311279,94755.0,94754.0,0.005]
[1733232293928,0.29311279,94755.0,94754.0,0.009]
[1733232294135,0.29311279,94755.0,94754.0,0.005]
[1733232294572,0.29311279,94755.0,94754.0,0.008]
[1733232295198,0.29311279,94755.0,94754.0,0.004]
[1733232296081,0.29311279,94755.0,94754.0,0.008]
[1733232300012,0.16611279,94755.0,94754.0,0.008]
[1733232305806,0.24241279,94755.0,94754.0,0.008]
[1733232307475,0.28901279,94755.0,94754.0,0.008]
[1733232307959,0.21786447,94739.0,94738.0,0.0008628]
[1733232308198,0.48966447,94739.0,94738.0,0.0008628]
[1733232308438,0.49699509,94739.0,94738.0,0.0008628]
[1733232309656,0.49699509,94739.0,94738.0,0.0028628]
[1733232310324,0.50299509,94739.0,94738.0,0.0028628]
[1733232311736,0.50499509,94739.0,94738.0,0.0028628]
[1733232312881,0.49899509,94739.0,94738.0,0.0008628]
[1733232313095,0.49699509,94739.0,94738.0,0.0008628]
[1733232313312,0.50199509,94739.0,94738.0,0.0008628]
[1733232313606,0.42669509,94739.0,94738.0,0.0008628]
[1733232313805,0.43069509,94739.0,94738.0,0.0008628]
[1733232314715,0.42969509,94739.0,94738.0,0.0008628]
[1733232314930,0.38419509,94739.0,94738.0,0.0008628]
[1733232316776,0.38419509,94739.0,94738.0,0.18387539]
[1733232316777,0.00733062,94739.0,94738.0,0.18387539]
[1733232316995,0.00473869,94739.0,94738.0,0.20243551]
[1733232317225,0.00473869,94739.0,94738.0,0.2507036]
[1733232317481,0.211091,94746.0,94738.0,0.2507036]
[1733232317482,0.211091,94746.0,94738.0,0.23027539]
[1733232317712,0.0017278,94762.0,94738.0,0.3366708]
[1733232317713,0.001,94739.0,94738.0,0.3366708]
[1733232317940,0.001,94739.0,94738.0,0.44038339]
[1733232318372,0.001,94739.0,94738.0,0.44138339]
[1733232318812,0.211073,94754.0,94738.0,0.44783006]
[1733232319033,0.211072,94754.0,94740.0,0.078]
[1733232319258,0.211072,94754.0,94741.0,0.1065805]
[1733232319259,0.211077,94752.0,94741.0,0.1065805]
[1733232319699,0.00487691,94751.0,94741.0,0.1065805]
[1733232320156,0.00487691,94751.0,94743.0,0.10471259]
[1733232320379,0.00487691,94751.0,94744.0,0.07836784]
[1733232320597,0.211066,94757.0,94745.0,0.10471259]
[1733232320811,0.00487691,94750.0,94746.0,0.00186784]
[1733232321031,0.2127838,94762.0,94749.0,0.10471259]
[1733232321032,0.15,94761.0,94749.0,0.10471259]
[1733232321308,0.0017278,94762.0,94754.0,0.10471259]
[1733232321516,0.0017278,94762.0,94754.0,0.10658023]
[1733232321937,0.0017278,94762.0,94754.0,0.23248023]
[1733232322157,0.0017278,94762.0,94754.0,0.23061259]
[1733232322380,0.0017278,94762.0,94754.0,0.42385412]
[1733232322835,0.0017278,94762.0,94754.0,0.42785412]
[1733232323269,0.0017278,94762.0,94754.0,0.43285412]
[1733232323487,0.0017278,94762.0,94754.0,0.51335563]
[1733232323967,0.0027256,94755.0,94754.0,0.52235563]
[1733232324405,0.0027256,94755.0,94754.0,0.43285412]
[1733232324628,0.0027256,94755.0,94754.0,0.43885412]
[1733232326622,0.0017256,94755.0,94754.0,0.42985412]
[1733232327070,0.0017256,94755.0,94754.0,0.66185412]
[1733232327556,0.0017278,94762.0,94758.0,0.62730453]
[1733232327808,0.0017278,94762.0,94758.0,0.95429284]
[1733232328933,0.0017278,94762.0,94758.0,1.09601705]
[1733232329154,0.0017278,94762.0,94758.0,1.10501705]
[1733232329614,0.0017278,94762.0,94758.0,0.96329284]
[1733232329834,0.0017278,94762.0,94758.0,1.10501705]
[1733232330065,0.0017278,94762.0,94758.0,0.96329284]
[1733232330304,0.0017278,94762.0,94758.0,1.10501705]
[1733232330524,0.0017278,94762.0,94758.0,0.97229284]
[1733232330955,0.0017278,94762.0,94758.0,0.64971712]
[1733232331396,0.0017278,94762.0,94758.0,0.84971712]
[1733232331869,0.0017278,94762.0,94758.0,0.43865412]
[1733232332857,0.0017278,94762.0,94758.0,0.39235412]
[1733232333576,0.0017278,94762.0,94758.0,0.38335412]
[1733232333803,0.0017278,94762.0,94758.0,0.39035412]
[1733232334570,0.0017278,94762.0,94758.0,0.38335412]
[1733232335023,0.0017278,94762.0,94758.0,0.42169884]
[1733232335289,0.0017278,94762.0,94758.0,0.38135412]
[1733232335533,0.0017278,94762.0,94758.0,0.39035412]
[1733232336242,0.2127838,94762.0,94758.0,0.12071259]
[1733232336475,0.211058,94761.0,94758.0,0.12071259]
[1733232337941,0.15,94760.0,94758.0,0.016]
[1733232338795,0.15,94760.0,94758.0,0.007]
[1733232339248,0.15,94760.0,94758.0,0.014]
[1733232339469,0.15,94760.0,94754.0,9.308e-05]
[1733232339695,0.422126,94758.0,94755.0,0.10471259]
[1733232341457,0.211068,94756.0,94754.0,9.308e-05]
[1733232341681,0.28555847,94755.0,94754.0,9.308e-05]
[1733232342337,0.28829637,94755.0,94754.0,8e-08]
[1733232342567,0.28843264,94755.0,94754.0,8e-08]
[1733232342782,0.28843264,94755.0,94738.0,0.0008628]
[1733232342783,0.44976447,94739.0,94738.0,0.0008628]
[1733232342973,0.44584923,94739.0,94738.0,0.0008628]
[1733232343304,0.44584923,94739.0,94738.0,8e-07]
[1733232343954,0.00675847,94736.0,94735.0,0.0008629]
[1733232345869,0.02775064,94736.0,94735.0,0.0008629]
[1733232346086,0.02875064,94736.0,94735.0,0.0008629]
[1733232346315,0.02775064,94736.0,94735.0,0.0008629]
[1733232346558,0.02299217,94736.0,94735.0,0.0008629]
[1733232346775,0.02975064,94736.0,94735.0,0.0008629]
[1733232347226,0.02299217,94736.0,94735.0,0.0008629]
[1733232348352,0.02099217,94736.0,94735.0,0.0008629]
[1733232348763,0.572218,94738.0,94735.0,0.0008629]
[1733232349191,0.572218,94738.0,94735.0,0.0028629]
[1733232349817,0.572218,94738.0,94735.0,0.0018629]
[1733232350022,0.572218,94738.0,94735.0,0.0008629]
[1733232350227,0.572218,94738.0,94735.0,0.0028629]
[1733232350438,0.361112,94736.0,94735.0,0.0028629]
[1733232351891,0.361112,94736.0,94735.0,0.0008629]
[1733232352107,0.362112,94736.0,94735.0,0.0018629]
[1733232352732,0.362112,94736.0,94735.0,0.0008629]
[1733232352947,0.361112,94736.0,94735.0,0.0028629]
[1733232353372,0.36787047,94736.0,94735.0,0.0028629]
[1733232353580,0.36787047,94736.0,94735.0,0.0008629]
[1733232353798,0.36787047,94736.0,94735.0,0.0018629]
[1733232354001,0.38878954,94736.0,94735.0,0.0018629]
[1733232354824,0.38978954,94736.0,94735.0,0.0008629]
[1733232355031,0.38878954,94736.0,94735.0,0.0008629]
[1733232355241,0.46598954,94736.0,94735.0,0.0008629]
[1733232355462,0.46698954,94736.0,94735.0,0.0008629]
[1733232356356,0.46598954,94736.0,94735.0,0.0008629]
[1733232356563,0.46698954,94736.0,94735.0,0.0008629]
[1733232358222,0.44607047,94736.0,94735.0,0.0008629]
[1733232359843,0.43607047,94736.0,94735.0,0.0008629]
[1733232362334,0.35887047,94736.0,94735.0,0.0008629]
[1733232363411,0.40837047,94736.0,94735.0,0.0008629]
[1733232364280,0.40822347,94736.0,94735.0,0.0008629]
[1733232364519,0.40822347,94736.0,94719.0,0.000863]
[1733232364732,0.211146,94721.0,94720.0,0.10471259]
[1733232366075,0.211146,94721.0,94720.0,0.004]
[1733232366749,0.21790447,94721.0,94720.0,0.004]
[1733232366969,0.00675847,94720.0,94719.0,0.000863]
[1733232368760,0.00675847,94720.0,94719.0,0.006863]
[1733232370661,0.15675847,94720.0,94719.0,0.006863]
[1733232376222,0.14910113,94720.0,94719.0,0.006863]
[1733232379012,0.14910113,94720.0,94719.0,0.11157559]
[1733232379224,0.14910113,94720.0,94719.0,0.18747559]
[1733232379433,0.17055835,94720.0,94719.0,0.18747559]
[1733232380686,0.17055835,94720.0,94719.0,0.11157559]
[1733232380911,0.17055835,94720.0,94719.0,0.006863]
[1733232383298,0.14910113,94720.0,94719.0,0.006863]
[1733232388553,0.16986254,94720.0,94719.0,0.006863]
[1733232392989,0.14910113,94720.0,94719.0,0.006863]
[1733232394086,0.14910113,94720.0,94719.0,0.11157559]
[1733232394572,0.15082753,94720.0,94719.0,0.11157559]
[1733232396098,0.26672291,94720.0,94719.0,0.11157559]
[1733232397645,0.26645626,94720.0,94719.0,0.11157559]
[1733232398963,0.28724553,94720.0,94719.0,0.11157559]
[1733232399177,0.28724553,94720.0,94719.0,0.006863]
[1733232403435,0.26645626,94720.0,94719.0,0.006863]
[1733232409653,0.36091251,94720.0,94719.0,0.006863]
[1733232410999,0.36094369,94720.0,94719.0,0.006863]
[1733232411213,0.26645626,94720.0,94719.0,0.006863]
[1733232411424,0.45543113,94720.0,94719.0,0.006863]
[1733232411645,0.38260447,94720.0,94719.0,0.006863]
[1733232412780,0.211179,94706.0,94705.0,0.0678256]
[1733232412997,0.211179,94706.0,94705.0,0.17259695]
[1733232413809,0.211179,94706.0,94705.0,0.17959695]
[1733232414812,0.212179,94706.0,94705.0,0.18859695]
[1733232418857,0.212179,94706.0,94705.0,0.18946015]
[1733232421061,0.212179,94706.0,94705.0,0.01692196]
[1733232421287,0.212179,94706.0,94705.0,9.6e-07]
[1733232421288,0.407779,94706.0,94705.0,9.6e-07]
[1733232421502,0.52123485,94706.0,94705.0,9.6e-07]
[1733232421720,0.52592947,94706.0,94705.0,9.6e-07]
[1733232422155,0.82534729,94706.0,94705.0,9.6e-07]
[1733232422382,0.64667327,94706.0,94705.0,9.6e-07]
[1733232423029,0.96344327,94706.0,94705.0,9.6e-07]
[1733232423269,0.97051613,94706.0,94705.0,9.6e-07]
[1733232423741,1.2565486,94706.0,94705.0,9.6e-07]
[1733232423962,0.97351613,94706.0,94705.0,9.6e-07]
[1733232424404,0.211255,94672.0,94671.0,0.0008629]
[1733232424621,0.528025,94672.0,94666.0,95.51866389]
[1733232424859,0.211266,94667.0,94666.0,95.51866389]
[1733232425332,0.528036,94667.0,94666.0,95.51866389]
[1733232425601,0.678036,94667.0,94666.0,95.51866389]
[1733232425813,0.68327701,94667.0,94666.0,95.51866389]
[1733232427291,0.678036,94667.0,94666.0,95.51866389]
[1733232428150,0.681036,94667.0,94666.0,95.51866389]
[1733232430403,0.531036,94667.0,94666.0,95.70367648]
[1733232431501,0.53061483,94667.0,94666.0,95.70367648]
[1733232431933,0.31977,94667.0,94666.0,95.70367648]
[1733232432592,0.31977,94667.0,94666.0,95.90367648]
[1733232433009,0.31677,94667.0,94666.0,95.90367648]
[1733232433280,0.31777,94667.0,94666.0,95.90667648]
[1733232433501,0.31777,94667.0,94666.0,96.00950794]
[1733232433734,0.31777,94667.0,94666.0,96.00850794]
[1733232433946,0.31877,94667.0,94666.0,96.01650794]
[1733232434584,0.31777,94667.0,94666.0,96.01450794]
[1733232434797,0.31777,94667.0,94666.0,95.91167648]
[1733232435017,0.31877,94667.0,94666.0,95.91367648]
[1733232435704,0.31877,94667.0,94666.0,96.11367648]
[1733232436596,0.31877,94667.0,94666.0,96.13667648]
[1733232437035,0.31877,94667.0,94666.0,96.11367648]
[1733232437476,0.31877,94667.0,94666.0,95.91367648]
[1733232438814,0.31877,94667.0,94666.0,95.71367648]
[1733232439024,0.31877,94667.0,94666.0,95.63337648]
[1733232439270,0.31877,94667.0,94666.0,95.52866389]
[1733232439690,0.46677,94667.0,94666.0,95.51866389]
[1733232440121,0.48858668,94667.0,94666.0,95.52166389]
[1733232440621,0.48858668,94667.0,94666.0,95.51866389]
[1733232441316,0.48758668,94667.0,94666.0,95.51866389]
[1733232441746,0.48758668,94667.0,94666.0,95.52366389]
[1733232442173,0.48758668,94667.0,94666.0,95.52166389]
[1733232442391,0.48858668,94667.0,94666.0,95.51866389]
[1733232442607,0.48858668,94667.0,94666.0,95.51966389]
[1733232442850,0.46777,94667.0,94666.0,95.51966389]
[1733232443285,0.46777,94667.0,94666.0,95.40376851]
[1733232448278,0.46677,94667.0,94666.0,95.40276851]
[1733232448741,0.47177,94667.0,94666.0,95.40276851]
[1733232449180,0.46677,94667.0,94666.0,95.40276851]
[1733232449609,0.46977,94667.0,94666.0,95.40276851]
[1733232449821,0.49045035,94667.0,94666.0,95.40276851]
[1733232452131,0.48745035,94667.0,94666.0,95.40276851]
[1733232452572,0.48845035,94667.0,94666.0,95.40276851]
[1733232452806,0.48845035,94667.0,94666.0,95.40376851]
[1733232453266,0.46777,94667.0,94666.0,95.40376851]
[1733232453707,0.4694972,94667.0,94666.0,95.40376851]
[1733232455273,0.4694972,94667.0,94666.0,95.5084811]
[1733232455274,0.3194972,94667.0,94666.0,95.5084811]
[1733232455498,0.3194972,94667.0,94666.0,95.5916811]
[1733232455721,0.3194972,94667.0,94666.0,95.69451256]
[1733232455994,0.3194972,94667.0,94666.0,95.5916811]
[1733232458527,0.3194972,94667.0,94666.0,95.5906811]
[1733232458962,0.3184972,94667.0,94666.0,95.5916811]
[1733232459654,0.3194972,94667.0,94666.0,95.5916811]
[1733232459886,0.3184972,94667.0,94666.0,95.5906811]
[1733232460105,0.3194972,94667.0,94666.0,95.5986811]
[1733232460343,0.3204972,94667.0,94666.0,95.5996811]
[1733232460815,0.3194972,94667.0,94666.0,95.5986811]
[1733232461298,0.3204972,94667.0,94666.0,95.5996811]
[1733232461760,0.3194972,94667.0,94666.0,95.5916811]
[1733232461980,0.3194972,94667.0,94666.0,95.59605593]
[1733232462642,0.3194972,94667.0,94666.0,95.59105593]
[1733232462858,0.3184972,94667.0,94666.0,95.59005593]
[1733232463092,0.3194972,94667.0,94666.0,95.59105593]
[1733232463336,0.3204972,94667.0,94666.0,95.59705593]
[1733232463821,0.3214972,94667.0,94666.0,95.59805593]
[1733232464037,0.3194972,94667.0,94666.0,95.59705593]
[1733232464263,0.3194972,94667.0,94666.0,95.59805593]
[1733232464498,0.3204972,94667.0,94666.0,95.59805593]
[1733232464715,0.3194972,94667.0,94666.0,95.59105593]
[1733232464952,0.3194972,94667.0,94666.0,95.69388739]
[1733232465170,0.3204972,94667.0,94666.0,95.59705593]
[1733232467643,0.3194972,94667.0,94666.0,95.59605593]
[1733232467867,0.3204972,94667.0,94666.0,95.59105593]
[1733232468114,0.3194972,94667.0,94666.0,95.59105593]
[1733232468344,0.3194972,94667.0,94666.0,95.59505593]
[1733232468779,0.3194972,94667.0,94666.0,95.59105593]
[1733232469209,0.3194972,94667.0,94666.0,95.59605593]
[1733232469646,0.3204972,94667.0,94666.0,95.59705593]
[1733232472119,0.3204972,94667.0,94666.0,95.51385593]
[1733232474572,0.3204972,94667.0,94666.0,95.63885593]
[1733232476428,0.3204972,94667.0,94666.0,95.59055593]
[1733232479372,0.5317632,94667.0,94666.0,95.59055593]
[1733232481890,0.5317632,94667.0,94666.0,95.51385593]
[1733232482117,0.3204972,94667.0,94666.0,95.51385593]
[1733232487054,0.3204972,94667.0,94666.0,95.68268917]
[1733232487509,0.3204972,94667.0,94666.0,95.88268917]
[1733232488418,0.3204972,94667.0,94666.0,96.02503829]
[1733232488666,0.3204972,94667.0,94666.0,95.78560505]
[1733232488954,0.3204972,94667.0,94666.0,95.77860505]
[1733232488955,0.3184972,94667.0,94666.0,95.77860505]
[1733232489179,0.3184972,94667.0,94666.0,95.63725593]
[1733232489180,0.3194972,94667.0,94666.0,95.63725593]
[1733232489410,0.3194972,94667.0,94666.0,95.73216164]
[1733232489630,0.3194972,94667.0,94666.0,95.93216164]
[1733232489847,0.3194972,94667.0,94666.0,95.83725593]
[1733232490325,0.3204972,94667.0,94666.0,95.98860505]
[1733232490545,0.3204972,94667.0,94666.0,95.84625593]
[1733232491217,0.3204972,94667.0,94666.0,95.94908739]
[1733232491651,0.0037272,94667.0,94666.0,95.94908739]
[1733232492345,0.0037272,94667.0,94666.0,95.84625593]
[1733232495017,0.0037272,94667.0,94666.0,96.19625593]
[1733232497509,0.0037272,94667.0,94666.0,96.43334419]
[1733232497782,0.0037272,94667.0,94666.0,95.79625593]
[1733232498041,0.0037272,94667.0,94666.0,95.64625593]
[1733232498289,0.0037272,94667.0,94666.0,95.98853452]
[1733232498767,0.0037272,94667.0,94666.0,95.84625593]
[1733232498993,0.00342282,94667.0,94666.0,95.64625593]
[1733232499225,0.00342282,94667.0,94666.0,95.69270782]
[1733232499462,0.00342282,94667.0,94666.0,95.59785593]
[1733232499684,0.00342282,94667.0,94666.0,95.51685593]
[1733232500955,0.00242282,94667.0,94666.0,95.50785593]
[1733232501213,0.00242282,94667.0,94666.0,95.51385593]
[1733232501214,0.00342282,94667.0,94666.0,95.51385593]
[1733232501807,0.00142282,94667.0,94666.0,95.50685593]
[1733232501977,0.00242282,94667.0,94666.0,95.51985593]
[1733232502225,0.00142282,94667.0,94666.0,95.51185593]
[1733232502682,0.00242282,94667.0,94666.0,95.51885593]
[1733232503138,0.00242282,94667.0,94666.0,95.51385593]
[1733232503609,0.00242282,94667.0,94666.0,95.51885593]
[1733232513751,0.00242282,94667.0,94666.0,95.51843509]
[1733232516662,0.21368882,94667.0,94666.0,95.51843509]
[1733232520448,0.00242282,94667.0,94666.0,95.51843509]
[1733232521205,0.00242282,94667.0,94666.0,95.62126655]
[1733232521415,0.00242282,94667.0,94666.0,95.69996655]
[1733232521681,0.00242282,94667.0,94666.0,95.79482363]
[1733232521926,0.00242282,94667.0,94666.0,95.69996655]
[1733232522198,0.00242282,94667.0,94666.0,95.68697028]
[1733232522434,0.00142282,94667.0,94666.0,95.59013509]
[1733232522905,0.00242282,94667.0,94666.0,95.59413509]
[1733232523386,0.00242282,94667.0,94666.0,95.68896032]
[1733232523877,0.00342282,94667.0,94666.0,95.69796032]
[1733232524327,0.00242282,94667.0,94666.0,95.68895651]
[1733232525236,0.00242282,94667.0,94666.0,95.59413509]
[1733232525668,0.00242282,94667.0,94666.0,95.59313509]
[1733232526104,0.00242282,94667.0,94666.0,95.60213509]
[1733232526325,0.00142282,94667.0,94666.0,95.58513509]
[1733232526559,0.00242282,94667.0,94666.0,95.5845401]
[1733232526781,0.00242282,94667.0,94666.0,95.5935401]
[1733232527251,0.00242282,94667.0,94666.0,95.69637156]
[1733232527674,0.00242282,94667.0,94666.0,95.89637156]
[1733232528336,0.00242282,94667.0,94666.0,95.94597156]
[1733232529760,0.00242282,94667.0,94666.0,95.8431401]
[1733232531355,0.00242282,94667.0,94666.0,95.6431401]
[1733232532021,0.00242282,94667.0,94666.0,95.8431401]
[1733232534889,0.00242282,94667.0,94666.0,95.9543401]
[1733232535141,0.00242282,94667.0,94666.0,95.8431401]
[1733232535375,0.00242282,94667.0,94666.0,95.94597156]
[1733232535610,0.00242282,94667.0,94666.0,96.040788]
[1733232535832,0.00242282,94667.0,94666.0,95.8431401]
[1733232537251,0.00242282,94667.0,94666.0,95.9379506]
[1733232537485,0.00242282,94667.0,94666.0,95.8431401]
[1733232539113,0.00242282,94667.0,94666.0,95.6431401]
[1733232539633,0.00242282,94667.0,94666.0,95.5935401]
[1733232540070,0.00242282,94667.0,94666.0,95.69637156]
[1733232541770,0.00242282,94667.0,94666.0,95.5935401]
[1733232542016,0.00242282,94667.0,94666.0,95.7935401]
[1733232542234,0.00242282,94667.0,94666.0,95.93578134]
[1733232542949,0.00242282,94667.0,94666.0,95.93581472]
[1733232546019,0.00125974,94667.0,94666.0,95.93581472]
[1733232546500,0.00125974,94667.0,94666.0,96.03864618]
[1733232546927,0.00125974,94667.0,94666.0,96.03678525]
[1733232547555,0.00125974,94667.0,94666.0,96.02778525]
[1733232547920,0.00125974,94667.0,94666.0,96.37978525]
[1733232548023,0.00125974,94667.0,94666.0,96.29251063]
[1733232548279,0.00125974,94667.0,94666.0,96.99251063]
[1733232548505,0.00125974,94667.0,94666.0,97.02544969]
[1733232548730,0.00058697,94672.0,94671.0,0.6725]
[1733232548947,0.00058697,94672.0,94671.0,0.88004405]
[1733232549393,0.00058697,94672.0,94671.0,1.58004405]
[1733232550066,0.00058697,94672.0,94671.0,1.58904405]
[1733232550523,0.00058697,94672.0,94671.0,1.79130105]
[1733232550765,0.00058697,94672.0,94671.0,1.80030105]
[1733232551253,0.00058697,94672.0,94671.0,1.79130105]
[1733232551742,0.00058697,94672.0,94671.0,1.80030105]
[1733232552489,0.00058697,94672.0,94671.0,1.80930105]
[1733232553474,0.00058697,94672.0,94671.0,1.70646959]
[1733232553733,0.00058697,94672.0,94671.0,1.69746959]
[1733232554261,0.00058697,94672.0,94671.0,1.70646959]
[1733232554502,0.00058697,94672.0,94671.0,1.93428799]
[1733232554762,0.00058697,94672.0,94671.0,1.92528799]
[1733232555011,0.00058697,94672.0,94671.0,1.44176959]
[1733232555277,0.00231297,94672.0,94671.0,0.47496959]
[1733232555519,0.00231297,94672.0,94671.0,0.26371259]
[1733232555764,0.00231297,94672.0,94671.0,0.46371259]
[1733232555995,0.00231297,94672.0,94671.0,0.27271259]
[1733232556463,0.00231297,94672.0,94671.0,0.13171259]
[1733232556698,0.00231297,94672.0,94671.0,0.11558188]
[1733232556936,0.00231297,94672.0,94671.0,0.12458188]